bitfinex-derivatives/quotes_ETHF0:USTF0_20251005
["timestamp","ask_amount","ask_price","bid_price","bid_amount"]
[1759668473766,0.9329,4538.8,4538.7,1.16597361]
[1759668474171,0.9329,4538.8,4538.7,0.48917361]
[1759668474366,0.9329,4538.8,4538.7,0.89157361]
[1759668475071,0.9329,4538.8,4538.7,0.67057361]
[1759668475271,0.9329,4538.8,4538.7,0.89157361]
[1759668475875,0.9329,4538.8,4538.7,1.16597361]
[1759668477173,0.9329,4538.8,4538.7,1.56248361]
[1759668477477,0.2546,4538.8,4538.7,1.56248361]
[1759668478577,0.9329,4538.8,4538.7,1.16597361]
[1759668478774,1.3294,4538.8,4538.7,1.16597361]
[1759668478976,0.9329,4538.8,4538.7,1.56248361]
[1759668480879,3.2078,4539.1,4538.7,1.56248361]
[1759668480880,0.65109,4539.0,4538.9,0.9426]
[1759668481074,0.2546,4539.0,4538.9,0.9426]
[1759668481270,3.2078,4539.1,4539.0,1.1073]
[1759668481470,3.2078,4539.1,4539.0,6.50378]
[1759668481672,3.2078,4539.1,4539.0,1.1073]
[1759668482682,3.2078,4539.1,4539.0,1.3283]
[1759668484579,0.4002,4539.5,4539.0,1.3283]
[1759668484783,3.2078,4539.8,4539.0,1.3283]
[1759668484784,3.2078,4539.8,4539.7,0.9426]
[1759668484979,3.60421,4539.8,4539.7,1.1636]
[1759668485186,3.2078,4539.8,4539.7,1.1636]
[1759668485485,3.4624,4539.8,4539.7,1.1636]
[1759668486285,3.2078,4539.8,4539.7,1.1636]
[1759668486786,3.2078,4540.3,4540.0,0.39639]
[1759668486983,0.2546,4540.2,4540.1,0.7612]
[1759668487487,0.2546,4540.2,4540.1,1.1636]
[1759668487887,0.9329,4540.2,4540.1,1.1636]
[1759668489383,0.4002,4540.6,4540.5,1.1073]
[1759668489594,0.6548,4540.6,4540.5,1.3283]
[1759668490384,0.2546,4540.6,4540.5,1.3283]
[1759668490686,3.21063514,4540.8,4540.7,0.9426]
[1759668492377,4.14353514,4540.8,4540.7,0.9426]
[1759668493392,3.74333514,4540.8,4540.7,1.33893]
[1759668493587,0.53553514,4540.8,4540.7,1.33893]
[1759668493788,0.53553514,4540.8,4540.7,0.9426]
[1759668495493,0.93573514,4540.8,4540.7,0.9426]
[1759668495889,0.53553514,4540.8,4540.7,0.9426]
[1759668496292,0.00283514,4540.8,4540.7,0.9426]
[1759668496488,0.25743514,4540.8,4540.7,0.9426]
[1759668496697,0.25743514,4540.8,4540.5,0.4024]
[1759668496698,0.39633,4540.7,4540.5,0.4024]
[1759668496888,0.9329,4540.6,4540.5,0.6682]
[1759668497088,0.9329,4540.6,4540.5,0.8892]
[1759668498194,0.9329,4540.6,4540.5,0.6682]
[1759668498388,0.5174,4540.3,4540.2,0.6466]
[1759668498696,0.9085,4540.3,4540.2,0.8676]
[1759668498895,0.9085,4540.3,4540.2,1.1253]
[1759668501800,0.9085,4540.3,4540.2,1.04297]
[1759668502003,0.9085,4540.3,4540.2,1.26397]
[1759668504898,0.9085,4540.3,4540.2,1.52167]
[1759668505498,0.5174,4540.1,4540.0,0.78629]
[1759668505693,0.9085,4540.1,4540.0,1.52169]
[1759668506699,0.9085,4540.1,4540.0,1.1253]
[1759668507200,0.9085,4540.1,4540.0,1.52169]
[1759668507401,0.9085,4540.1,4540.0,1.1253]
[1759668507995,0.9085,4540.1,4540.0,0.9043]
[1759668508197,0.9085,4540.1,4540.0,1.1253]
[1759668508898,0.5174,4540.1,4539.9,3.60419]
[1759668509099,0.9085,4540.1,4540.0,0.221]
[1759668509398,0.9085,4539.7,4539.5,0.39643]
[1759668509697,0.3911,4539.6,4539.5,0.78633]
[1759668509897,0.9085,4539.6,4539.5,1.26403]
[1759668510901,0.9085,4539.6,4539.5,0.6466]
[1759668511108,0.9085,4539.6,4539.5,0.8676]
[1759668511801,0.9085,4539.6,4539.5,1.26403]
[1759668512194,0.9085,4539.6,4539.5,2.45119048]
[1759668512395,0.9085,4539.6,4539.5,2.70889048]
[1759668512599,0.9085,4539.6,4539.5,2.87149048]
[1759668513096,0.3906,4539.9,4539.5,2.47506048]
[1759668513303,0.2502,4539.9,4539.8,1.27661]
[1759668513605,0.2502,4539.9,4539.8,1.49761]
[1759668513900,3.2078,4540.3,4540.2,1.27657]
[1759668514199,3.2078,4540.3,4540.2,1.49757]
[1759668514200,3.8486,4540.3,4540.2,1.49757]
[1759668516201,4.1179,4540.3,4540.2,1.49757]
[1759668523806,4.51426,4540.3,4540.2,0.86457]
[1759668524505,4.51426,4540.3,4540.2,0.61737]
[1759668524808,4.51426,4540.3,4540.2,0.221]
[1759668525707,0.91588,4540.1,4540.0,2.21815048]
[1759668525900,1.30648,4540.1,4540.0,2.43915048]
[1759668526401,1.30648,4540.1,4540.0,2.04276048]
[1759668529110,1.30648,4540.1,4540.0,2.28836048]
[1759668531608,1.30648,4540.1,4540.0,1.1012]
[1759668531810,0.9101,4540.1,4540.0,1.49759]
[1759668532010,1.30648,4540.1,4540.0,1.49759]
[1759668532313,1.30648,4540.1,4540.0,1.1012]
[1759668533912,1.09219,4540.0,4539.9,1.18716048]
[1759668534109,0.9106,4539.9,4539.8,2.23577048]
[1759668534303,0.9106,4539.9,4539.8,2.71437048]
[1759668535304,0.9106,4539.9,4539.8,1.52721]
[1759668535510,3.2078,4540.4,4540.3,1.30616]
[1759668535709,3.93181048,4540.4,4540.3,1.52716]
[1759668536010,4.29901048,4540.4,4540.3,1.1308]
[1759668536211,4.57061048,4540.4,4540.3,1.1308]
[1759668536612,4.96697048,4540.4,4540.3,1.1308]
[1759668539216,4.32817048,4540.4,4540.3,1.1308]
[1759668539816,3.93181048,4540.4,4540.3,1.52716]
[1759668540417,3.66001048,4540.4,4540.3,1.52716]
[1759668540913,3.93181048,4540.4,4540.3,1.52716]
[1759668541508,3.4796,4540.4,4540.3,1.52716]
[1759668541905,4.51476,4540.4,4540.3,0.9098]
[1759668542104,4.96711692,4540.4,4540.3,1.1308]
[1759668542314,4.96711692,4540.4,4540.3,0.8732]
[1759668543414,4.57075692,4540.4,4540.3,1.52716]
[1759668544517,4.1184,4540.4,4540.3,1.52716]
[1759668544715,4.1184,4540.4,4540.3,2.71577122]
[1759668544918,4.51476,4540.4,4540.3,2.71577122]
[1759668545514,4.1184,4540.4,4540.3,2.71577122]
[1759668545711,4.51476,4540.4,4540.3,2.31941122]
[1759668546017,4.51476,4540.4,4540.3,1.52716]
[1759668547119,4.51476,4540.4,4540.3,1.1308]
[1759668547817,4.51476,4540.4,4540.3,0.8732]
[1759668548018,4.96715188,4540.4,4540.3,0.8732]
[1759668548318,4.96715188,4540.4,4540.3,0.6522]
[1759668548520,4.96715188,4540.4,4540.3,0.8732]
[1759668548916,1.30697,4540.2,4540.1,1.58499122]
[1759668549114,1.30697,4540.2,4540.1,1.01208]
[1759668549316,1.30697,4540.2,4540.1,1.26958]
[1759668549814,1.30697,4540.2,4540.1,0.8732]
[1759668550015,0.9106,4540.2,4540.1,1.18923966]
[1759668550222,0.9106,4540.2,4539.4,3.2078]
[1759668550223,1.45939,4540.0,4539.9,1.18923966]
[1759668550521,1.91167569,4540.0,4539.9,0.221]
[1759668551316,1.45939,4540.0,4539.9,0.221]
[1759668552623,1.45939,4540.0,4539.9,0.6174]
[1759668552815,1.45939,4540.0,4539.9,1.2696]
[1759668553418,1.30699,4540.0,4539.9,1.2696]
[1759668553624,1.30699,4540.0,4539.9,1.5272]
[1759668553920,1.30699,4540.0,4539.9,1.1308]
[1759668554424,1.45939,4540.0,4539.9,0.8732]
[1759668554720,1.45939,4540.0,4539.6,1.18923966]
[1759668554721,0.39642,4539.7,4539.6,1.18923966]
[1759668554918,1.30702,4539.7,4539.6,1.80666966]
[1759668555119,1.30702,4539.7,4539.6,1.26963]
[1759668555618,1.30702,4539.7,4539.6,0.8732]
[1759668556122,1.30702,4539.7,4539.6,2.06168556]
[1759668556416,0.639,4540.0,4539.9,0.9115]
[1759668556722,0.639,4540.0,4539.9,1.5272]
[1759668560727,0.265,4540.2,4540.1,1.29917]
[1759668561024,0.6239,4541.5,4541.4,0.5096]
[1759668561326,0.6239,4541.5,4541.4,1.1238]
[1759668562120,0.62653719,4541.5,4541.4,1.1238]
[1759668565122,0.26763719,4541.5,4541.4,1.1238]
[1759668566124,0.87823719,4541.5,4541.4,1.1238]
[1759668566831,1.02783719,4541.5,4541.4,0.862]
[1759668568129,1.02783719,4541.5,4541.4,0.2478]
[1759668568329,1.06519719,4541.5,4541.4,0.221]
[1759668568530,1.42409719,4541.5,4541.4,0.221]
[1759668570628,0.265,4540.8,4540.7,4.11373]
[1759668570829,0.6239,4540.8,4540.7,4.72793]
[1759668571023,0.265,4540.8,4540.7,4.72793]
[1759668571230,0.265,4540.8,4540.7,4.50693]
[1759668571529,0.265,4540.8,4540.7,4.72793]
[1759668573235,0.265,4540.8,4540.7,1.52013]
[1759668573827,0.2405,4541.0,4540.9,1.31111]
[1759668574036,0.6235,4541.3,4541.2,1.31108]
[1759668574231,0.6235,4541.3,4541.2,1.53208]
[1759668574936,0.8741,4541.3,4541.2,1.53208]
[1759668575137,1.27037,4541.3,4541.2,1.1358]
[1759668575336,0.88737,4541.3,4541.2,1.1358]
[1759668575634,1.27037,4541.3,4541.2,1.1358]
[1759668576428,1.27037,4541.3,4540.9,0.3959]
[1759668576634,0.8874,4541.0,4540.9,0.2612]
[1759668576832,1.2704,4541.0,4540.9,0.2612]
[1759668577133,1.2704,4541.0,4540.9,0.6571]
[1759668577431,1.2704,4541.0,4540.9,1.1358]
[1759668578035,1.2704,4541.0,4540.9,0.9148]
[1759668578229,1.2704,4541.0,4540.9,1.1358]
[1759668578440,1.2704,4541.0,4540.9,1.53211]
[1759668578633,1.2704,4541.0,4540.9,1.1358]
[1759668580241,1.2704,4541.0,4540.9,1.53211]
[1759668580845,1.2704,4541.0,4540.9,0.9148]
[1759668581137,0.4911,4540.6,4540.5,0.5189]
[1759668581342,0.8741,4540.6,4540.5,1.29394]
[1759668581732,0.8741,4540.6,4540.5,1.68984]
[1759668581936,0.4911,4540.6,4540.5,1.2935]
[1759668582238,0.88743,4540.6,4540.5,1.2935]
[1759668582543,1.27043,4540.6,4540.5,1.2935]
[1759668583834,0.2405,4541.1,4541.0,0.554]
[1759668584039,0.2405,4541.1,4541.0,0.8976]
[1759668584437,0.2405,4541.1,4541.0,1.2935]
[1759668585138,1.01979,4541.1,4541.0,1.2935]
[1759668587844,1.00469,4541.1,4541.0,1.2935]
[1759668588746,0.63679,4541.1,4541.0,1.2935]
[1759668589040,0.2405,4541.1,4541.0,1.6898]
[1759668590044,0.63679,4541.1,4541.0,1.6898]
[1759668590343,0.39629,4541.1,4541.0,1.6898]
[1759668590546,0.39629,4541.1,4541.0,2.48150389]
[1759668591348,0.39629,4541.1,4541.0,2.87780389]
[1759668591648,0.39629,4541.1,4541.0,1.2935]
[1759668592252,0.39629,4541.2,4541.0,1.2939]
[1759668592452,1.25919,4541.2,4541.1,0.8623]
[1759668593061,1.25919,4541.2,4541.1,1.0833]
[1759668594853,1.71185216,4541.2,4541.1,1.0833]
[1759668595552,1.25919,4541.2,4541.1,1.0833]
[1759668595951,1.71186557,4541.2,4541.1,1.0833]
[1759668597548,4.91966557,4541.2,4541.1,1.0833]
[1759668598653,1.2592,4541.0,4540.9,1.78610389]
[1759668598855,1.2592,4541.0,4540.9,2.27130389]
[1759668600557,1.0196,4541.0,4540.9,2.66761389]
[1759668600748,0.6517,4541.0,4540.9,2.66761389]
[1759668600954,0.6517,4541.0,4540.9,2.27130389]
[1759668601356,0.39629,4541.2,4540.9,2.66761389]
[1759668601557,0.39628,4541.2,4541.1,0.8623]
[1759668601855,0.39628,4541.2,4541.1,1.0833]
[1759668602054,0.39627,4541.3,4541.2,0.8623]
[1759668602449,0.84893717,4541.3,4541.2,0.8623]
[1759668603357,1.71183717,4541.3,4541.2,0.8623]
[1759668606661,1.10433717,4541.3,4541.2,0.8623]
[1759668607560,0.45266717,4541.3,4541.2,0.8623]
[1759668607862,0.84920041,4541.4,4541.3,0.8623]
[1759668608064,0.84920045,4541.4,4541.3,1.0833]
[1759668608563,1.10460045,4541.4,4541.3,1.0833]
[1759668613454,0.84920045,4541.4,4541.3,1.0833]
[1759668613950,0.84920045,4541.4,4541.3,1.47957]
[1759668614763,0.84920045,4541.4,4541.3,1.0833]
[1759668614963,0.45294045,4541.4,4541.3,1.47957]
[1759668616361,0.70834045,4541.4,4541.3,1.47957]
[1759668616761,1.10460045,4541.4,4541.3,1.0833]
[1759668617062,0.45294045,4541.4,4541.3,1.47957]
[1759668619065,0.00263719,4541.5,4541.4,0.39626]
[1759668619265,0.00263719,4541.5,4541.4,1.26426]
[1759668621468,0.00263719,4541.5,4541.4,2.45216282]
[1759668621660,0.00263719,4541.5,4541.4,1.26426]
[1759668624565,0.00263719,4541.5,4541.4,6.26426]
[1759668627066,0.022,4542.9,4542.8,0.6282]
[1759668627067,1.27003,4542.9,4542.8,0.6282]
[1759668627369,0.8739,4542.9,4542.8,1.089]
[1759668627568,0.8739,4542.9,4542.8,0.8492]
[1759668627969,0.87665723,4542.9,4542.8,0.85183782]
[1759668630572,0.87665723,4542.9,4542.8,1.09163782]
[1759668630767,0.02475723,4542.9,4542.8,1.09163782]
[1759668634871,3.3557,4544.0,4542.8,1.09163782]
[1759668634872,4.19864,4544.0,4543.9,0.8593]
[1759668635072,4.44124,4544.0,4543.9,1.0803]
[1759668635270,4.20124,4544.0,4543.9,1.0803]
[1759668635473,0.3548,4544.7,4544.3,0.8593]
[1759668635667,0.3548,4544.7,4544.3,1.0803]
[1759668635869,0.0228494,4544.4,4544.3,1.0803]
[1759668639582,0.8602494,4544.4,4544.3,1.0803]
[1759668640283,0.39607,4543.7,4543.6,0.6137]
[1759668640484,0.39607,4543.7,4542.8,1.58664301]
[1759668640485,0.24,4543.1,4543.0,0.6247]
[1759668640789,0.24,4543.1,4543.0,1.40292]
[1759668640982,0.24,4543.1,4543.0,1.2278]
[1759668641287,0.5948,4543.1,4543.0,1.62392]
[1759668642383,0.24,4543.1,4543.0,1.62392]
[1759668642581,0.5948,4543.4,4543.3,0.8733]
[1759668642781,0.5948,4543.4,4543.3,1.4764]
[1759668644188,0.24,4543.4,4543.3,1.2554]
[1759668644391,0.24,4543.4,4543.3,1.4764]
[1759668645085,0.8374,4543.4,4543.3,0.6137]
[1759668645283,0.8374,4543.4,4543.3,0.8347]
[1759668645687,0.8374,4543.4,4543.3,0.8593]
[1759668645888,0.8374,4543.4,4543.3,1.0803]
[1759668646595,0.8374,4543.4,4543.3,0.8593]
[1759668646794,0.8374,4543.4,4543.3,1.0803]
[1759668649894,0.8374,4543.4,4543.3,1.4764]
[1759668650696,0.4826,4543.4,4543.3,1.4764]
[1759668650995,0.8614,4543.4,4543.3,1.4764]
[1759668654201,0.613,4543.7,4543.6,0.88567]
[1759668654400,0.613,4543.7,4543.6,1.48097]
[1759668656304,0.2342,4543.7,4543.6,1.48097]
[1759668657204,0.613,4543.7,4543.6,1.48097]
[1759668658006,3.4558,4544.2,4544.1,0.8639]
[1759668658303,3.69,4544.2,4544.1,1.48093]
[1759668658700,4.0688,4544.2,4544.1,1.48093]
[1759668658895,0.861,4544.2,4544.1,1.48093]
[1759668659805,0.2342,4544.2,4544.1,1.48093]
[1759668660004,0.861,4544.2,4544.1,1.0849]
[1759668660204,0.861,4544.2,4544.1,1.48093]
[1759668661000,1.25702,4544.2,4544.1,0.622]
[1759668661206,0.4822,4543.8,4543.7,0.77036]
[1759668661408,0.861,4543.8,4543.7,1.23906]
[1759668661706,1.25705,4543.8,4543.7,1.23906]
[1759668661901,1.25705,4543.8,4543.7,0.843]
[1759668662406,1.25705,4543.8,4543.7,0.622]
[1759668662609,1.25705,4543.8,4543.7,0.843]
[1759668662906,1.25705,4543.8,4543.7,1.23906]
[1759668663407,1.25706,4543.7,4543.6,1.18274687]
[1759668663606,1.25706,4543.7,4543.6,0.221]
[1759668664107,1.25706,4543.7,4543.6,1.23907]
[1759668664707,1.25706,4543.7,4543.6,1.48097]
[1759668665508,0.2342,4543.7,4543.6,2.66371687]
[1759668666498,0.613,4543.7,4543.6,2.66371687]
[1759668666704,1.00906,4543.7,4543.6,2.26764687]
[1759668666909,1.25706,4543.7,4543.6,1.65144687]
[1759668667111,1.25706,4543.7,4543.6,0.4687]
[1759668667310,1.25706,4543.7,4543.6,1.65144687]
[1759668667512,1.25706,4543.7,4543.6,2.02574687]
[1759668668011,1.25706,4543.7,4543.6,1.80474687]
[1759668668214,1.25706,4543.7,4543.6,2.42181687]
[1759668668606,1.25706,4543.7,4543.6,2.66371687]
[1759668669009,1.25706,4543.7,4543.6,2.26764687]
[1759668669202,1.25706,4543.7,4543.6,1.48097]
[1759668670711,1.25706,4543.7,4543.6,1.0849]
[1759668670908,4.46486,4543.7,4543.6,0.622]
[1759668671206,1.2571,4543.3,4543.2,0.8639]
[1759668671415,1.2571,4543.3,4543.2,1.0849]
[1759668672618,0.3788,4543.1,4542.9,0.3743]
[1759668672811,0.3788,4543.1,4542.8,0.00263782]
[1759668672812,1.40682,4543.0,4542.8,0.00263782]
[1759668673013,1.40682,4543.0,4542.9,0.221]
[1759668673515,0.613,4543.0,4542.9,1.0849]
[1759668673707,3.2078,4543.1,4543.0,1.41232]
[1759668673708,4.0688,4543.1,4543.0,1.41232]
[1759668673908,0.39612,4543.0,4542.9,1.4090815]
[1759668674114,1.40682,4543.0,4542.9,0.221]
[1759668674708,1.40682,4543.0,4542.8,0.00263782]
[1759668674917,1.40682,4543.0,4542.9,0.221]
[1759668675111,1.40682,4543.0,4542.8,0.00263782]
[1759668675518,1.40682,4543.0,4542.9,0.221]
[1759668679217,1.40682,4543.0,4542.8,0.00263782]
[1759668679715,0.39613,4542.9,4542.8,0.00263782]
[1759668679919,1.22543,4542.9,4542.8,0.00263782]
[1759668680320,6.22543,4542.9,4542.8,0.00263782]
[1759668680518,6.22543,4542.9,4542.8,7.82e-06]
[1759668680820,0.88672,4541.9,4541.8,1.5554815]
[1759668681028,1.22552,4541.9,4541.8,0.5884]
[1759668681217,1.22552,4541.9,4541.8,1.0702]
[1759668681620,1.22552,4541.9,4541.8,1.07215511]
[1759668683326,1.22552,4541.9,4541.8,0.82385511]
[1759668683723,1.22552,4541.9,4541.8,0.60285511]
[1759668684117,1.22552,4541.9,4541.8,0.82385511]
[1759668684523,1.22552,4541.9,4541.8,1.07215511]
[1759668684927,0.8293,4541.9,4541.8,1.07215511]
[1759668685126,3.2078,4542.0,4541.9,0.3674]
[1759668685325,3.2078,4542.0,4541.9,0.8492]
[1759668685628,3.2078,4542.0,4541.9,1.24542]
[1759668685826,0.39619,4542.2,4542.1,0.2335]
[1759668686027,0.63529,4542.2,4542.1,0.8492]
[1759668686223,0.97409,4542.2,4542.1,0.8492]
[1759668686424,1.22549,4542.2,4542.1,0.8492]
[1759668689534,0.63529,4542.2,4542.1,0.8492]
[1759668689730,1.22549,4542.2,4542.1,0.8492]
[1759668690936,1.22549,4542.2,4542.1,1.0702]
[1759668691136,1.22549,4542.2,4542.1,0.8492]
[1759668691432,1.22549,4542.2,4542.1,1.0702]
[1759668691433,0.88669,4542.2,4542.1,1.0702]
[1759668691828,0.63529,4542.2,4542.1,1.0702]
[1759668694235,1.23809,4542.2,4542.1,1.0702]
[1759668696834,0.86599,4542.2,4542.1,1.0702]
[1759668697936,1.23809,4542.2,4542.1,1.0702]
[1759668701131,0.86852,4541.9,4541.8,0.59435511]
[1759668701337,1.24062,4541.9,4541.8,0.00195511]
[1759668701643,1.24062,4541.9,4541.8,0.22295511]
[1759668702247,1.24062,4541.9,4541.8,0.00195511]
[1759668702545,1.24062,4541.9,4541.8,0.22295511]
[1759668702953,1.24062,4541.9,4541.8,0.00195511]
[1759668703149,1.24062,4541.9,4541.8,0.22295511]
[1759668704151,1.24062,4541.9,4541.8,0.00195511]
[1759668704449,1.24062,4541.9,4541.8,0.22295511]
[1759668706051,1.24062,4541.9,4541.8,0.00195511]
[1759668710259,1.6924405,4541.9,4541.8,0.00195511]
[1759668711847,0.99061,4541.7,4541.3,1.1880815]
[1759668712047,0.3336,4541.1,4540.9,1.5492815]
[1759668712249,1.3346,4541.0,4540.9,0.221]
[1759668712645,0.39632,4540.7,4540.6,1.1880815]
[1759668712848,0.39632,4540.7,4540.1,1.58400519]
[1759668712849,0.85826,4540.3,4540.2,1.4202815]
[1759668713050,1.19186,4540.3,4540.2,0.4532]
[1759668713250,1.19186,4540.3,4540.2,0.81675789]
[1759668714358,1.19186,4540.3,4540.2,1.04085789]
[1759668715956,0.2263,4540.3,4540.2,1.04085789]
[1759668716560,0.5599,4540.3,4540.2,1.04085789]
[1759668717961,0.2263,4540.3,4540.2,1.04085789]
[1759668718463,0.62266,4540.3,4540.2,1.04085789]
[1759668720062,0.00256822,4540.7,4540.6,0.4563]
[1759668720251,0.00256822,4540.7,4540.6,1.43483]
[1759668721964,0.39888822,4540.7,4540.6,1.0385]
[1759668722863,0.95878822,4540.7,4540.6,0.3612]
[1759668723064,1.19186,4540.3,4540.2,0.00235789]
[1759668724564,1.19186,4540.3,4540.2,1.04085789]
[1759668724872,0.39636,4540.3,4540.2,1.04085789]
[1759668725572,1.19186,4540.3,4540.2,1.04085789]
[1759668726368,1.19186,4540.3,4540.2,0.00235789]
[1759668726673,1.19186,4540.3,4540.2,0.81675789]
[1759668726871,1.19186,4540.3,4540.2,1.04085789]
[1759668727172,0.62266,4540.3,4540.2,1.04085789]
[1759668730874,0.95626,4540.3,4540.2,1.04085789]
[1759668734069,0.62266,4540.3,4540.2,1.04085789]
[1759668735567,0.95626,4540.3,4540.2,1.04085789]
[1759668735971,1.19186,4540.3,4540.2,1.04085789]
[1759668741874,1.19186,4540.3,4540.2,0.00235789]
[1759668742081,1.19186,4540.3,4540.2,0.22335789]
[1759668742876,1.19186,4540.3,4540.2,0.79045789]
[1759668743382,1.19186,4540.3,4540.2,0.56945789]
[1759668743583,1.19186,4540.3,4540.2,0.79045789]
[1759668744678,0.62266,4540.3,4540.2,1.42862789]
[1759668745184,0.62266,4540.3,4540.2,1.03225789]
[1759668745980,0.96736,4540.3,4540.2,1.03225789]
[1759668747181,0.62266,4540.3,4540.2,1.03225789]
[1759668747781,0.62266,4540.3,4540.2,1.42862789]
[1759668750680,0.96736,4540.3,4540.2,1.03225789]
[1759668751586,1.19496,4540.3,4540.2,1.41143939]
[1759668751883,1.19496,4540.3,4540.2,0.22335789]
[1759668752272,1.64735125,4540.3,4540.2,0.22335789]
[1759668753880,1.64735125,4540.3,4540.2,0.00235789]
[1759668754384,1.64735125,4540.3,4540.2,0.22335789]
[1759668755181,1.64735125,4540.3,4540.2,0.00235789]
[1759668755492,1.64735125,4540.3,4540.2,0.22335789]
[1759668756180,1.64735125,4540.3,4540.2,0.56675789]
[1759668756784,1.64735125,4540.3,4540.2,0.78655789]
[1759668756985,1.64735125,4540.3,4540.2,1.00775789]
[1759668757484,1.19496,4540.3,4540.2,1.00775789]
[1759668757788,1.6473948,4540.3,4540.2,1.00775789]
[1759668759396,1.6473948,4540.3,4540.2,2.19583939]
[1759668759578,1.19496,4540.3,4540.2,2.19583939]
[1759668760382,1.19496,4540.3,4540.2,1.97463939]
[1759668760586,1.64703408,4540.3,4540.2,0.22335789]
[1759668760981,1.64703408,4540.3,4540.2,0.78655789]
[1759668761190,1.19496,4540.3,4540.2,1.97463939]
[1759668761488,0.7986,4540.3,4540.2,2.59220939]
[1759668761685,0.2263,4540.3,4540.2,1.40412789]
[1759668761887,0.62266,4540.3,4540.2,2.5933319]
[1759668763090,0.62266,4540.3,4540.2,2.1969619]
[1759668764884,3.21036822,4540.7,4540.2,2.1969619]
[1759668765091,3.44676822,4540.7,4540.6,0.7844]
[1759668765389,3.89878927,4540.7,4540.6,1.0054]
[1759668765595,4.24128927,4540.7,4540.6,1.0054]
[1759668765794,4.63760927,4540.7,4540.6,1.0054]
[1759668765985,1.42980927,4540.7,4540.6,1.0054]
[1759668767488,1.08730927,4540.7,4540.6,1.0054]
[1759668767891,1.42480927,4540.7,4540.6,1.0054]
[1759668770290,1.65290927,4540.7,4540.6,1.0054]
[1759668774897,1.65665793,4540.7,4540.6,1.0054]
[1759668776793,1.65665793,4540.7,4540.6,0.7844]
[1759668776990,1.65665793,4540.7,4540.6,0.7842]
[1759668778901,1.65665793,4540.7,4540.6,0.5632]
[1759668779100,0.39636,4540.3,4540.2,3.21015789]
[1759668779297,1.18076,4540.3,4540.2,0.00235789]
[1759668779599,1.18076,4540.3,4540.2,0.22335789]
[1759668779600,1.63664759,4540.3,4540.2,0.22335789]
[1759668780097,1.63664759,4540.3,4540.2,0.54855789]
[1759668780800,1.63664759,4540.3,4540.2,0.78065789]
[1759668781706,1.63664759,4540.3,4540.2,1.01545789]
[1759668784404,1.63664759,4540.3,4540.2,0.22335789]
[1759668787610,1.63664759,4540.3,4540.2,0.00235789]
[1759668790306,1.63664759,4540.3,4540.2,0.23445789]
[1759668790509,1.63664759,4540.3,4540.2,0.55965789]
[1759668791905,1.63664759,4540.3,4540.2,0.00235789]
[1759668796706,1.63664759,4540.3,4540.2,0.32755789]
[1759668796917,1.63664759,4540.3,4540.2,0.55965789]
[1759668797419,0.39635,4540.3,4540.2,1.20131789]
[1759668797717,1.20335,4540.3,4540.2,0.80495789]
[1759668798515,1.20335,4540.3,4540.2,1.20131789]
[1759668800214,1.20335,4540.3,4540.2,0.80495789]
[1759668801013,1.20335,4540.3,4540.2,0.00235789]
[1759668801916,1.65911495,4540.3,4540.2,0.00235789]
[1759668802912,1.65911495,4540.3,4540.2,0.78845789]
[1759668805813,0.45576495,4540.3,4540.2,1.18481789]
[1759668806015,0.3378,4540.5,4540.3,0.3357]
[1759668806317,0.96624,4540.5,4540.4,0.7861]
[1759668806514,1.42227636,4540.5,4540.4,0.7861]
[1759668806813,1.02593636,4540.5,4540.4,0.7861]
[1759668807219,1.42227636,4540.5,4540.4,0.7861]
[1759668808213,1.65937636,4540.5,4540.4,0.7861]
[1759668809913,0.45603636,4540.5,4540.4,1.18244]
[1759668810415,0.85237636,4540.5,4540.4,1.18244]
[1759668810721,0.45603636,4540.5,4540.4,1.18244]
[1759668810917,0.45603636,4540.5,4540.4,1.40344]
[1759668811423,0.85237636,4540.5,4540.4,1.40344]
[1759668811724,1.42227636,4540.5,4540.4,1.0071]
[1759668812022,1.65960143,4540.5,4540.4,1.0071]
[1759668813222,1.20334,4540.5,4540.4,1.0071]
[1759668818126,0.2321,4540.5,4540.4,1.40344]
[1759668818329,0.39888822,4540.7,4540.6,0.4496]
[1759668818525,0.39888822,4540.7,4540.6,0.7679]
[1759668818723,0.85504452,4540.7,4540.6,0.7679]
[1759668819228,1.07454452,4540.7,4540.6,0.7679]
[1759668819421,1.38914452,4540.7,4540.6,0.7679]
[1759668821416,1.61564452,4540.7,4540.6,0.7679]
[1759668823927,1.15695,4540.3,4540.2,0.54315789]
[1759668824129,1.15695,4540.3,4540.2,0.76415789]
[1759668824329,1.15695,4540.3,4540.2,0.99125789]
[1759668826027,1.15695,4540.3,4540.2,0.77025789]
[1759668826227,1.15695,4540.3,4540.2,0.76415789]
[1759668827136,1.15695,4540.3,4540.2,1.9533619]
[1759668828036,1.15695,4540.3,4540.2,1.7323619]
[1759668828231,1.15695,4540.3,4540.2,1.9533619]
[1759668828535,1.15695,4540.3,4540.2,0.76415789]
[1759668830734,1.15695,4540.3,4540.2,0.22335789]
[1759668831534,1.61335062,4540.3,4540.2,0.22335789]
[1759668836145,1.61335062,4540.3,4540.2,0.55555789]
[1759668836446,1.61335062,4540.3,4540.2,0.33455789]
[1759668836743,1.61335062,4540.3,4540.2,0.55555789]
[1759668836943,0.39634,4540.5,4540.4,0.2287]
[1759668837147,1.08196239,4540.5,4540.4,0.7703]
[1759668837743,1.40516239,4540.5,4540.4,0.7703]
[1759668837942,1.62806239,4540.5,4540.4,0.7703]
[1759668840146,1.30486239,4540.5,4540.4,0.7703]
[1759668840752,1.23172239,4540.5,4540.4,0.7703]
[1759668842951,1.36472239,4540.5,4540.4,0.5609]
[1759668843149,1.36472239,4540.5,4540.4,0.3322]
[1759668848153,1.36472239,4540.5,4540.4,0.5609]
[1759668848555,0.7759,4540.3,4540.2,0.56325789]
[1759668848756,0.7759,4540.3,4540.2,0.99365789]
[1759668850058,0.7759,4540.3,4540.2,0.78425789]